[Event "GrandPrix_29.05"]
[Site "Chess.com"]
[Date "2020.05.29"]
[Round "2"]
[White "MilosJi"]
[Black "Luq27"]
[Result "1/2-1/2"]
[WhiteElo "2431"]
[BlackElo "2238"]
[TimeControl "600+2"]
[EndTime "9:54:07 PDT"]
[Termination "Game drawn - insufficient material"]

1. Nf3 {[%clk 0:10:01.9]} 1... Nf6 {[%clk 0:09:59.9]} 2. c4 {[%clk 0:10:02]}
2... b6 {[%clk 0:09:54.2]} 3. g3 {[%clk 0:10:01.8]} 3... e6 {[%clk 0:09:50.9]}
4. Bg2 {[%clk 0:10:02.1]} 4... Bb7 {[%clk 0:09:51.4]} 5. O-O {[%clk 0:10:02.8]}
5... c5 {[%clk 0:09:31.7]} 6. Nc3 {[%clk 0:10:02.4]} 6... Be7 {[%clk 0:09:32.5]}
7. d4 {[%clk 0:10:03.3]} 7... cxd4 {[%clk 0:09:33.1]} 8. Qxd4 {[%clk 0:10:04.2]}
8... Nc6 {[%clk 0:09:25.5]} 9. Qf4 {[%clk 0:10:04]} 9... O-O {[%clk 0:09:19.4]}
10. Rd1 {[%clk 0:10:04]} 10... Qb8 {[%clk 0:09:20.5]} 11. b3 {[%clk 0:10:04.9]}
11... Qxf4 {[%clk 0:09:05.9]} 12. Bxf4 {[%clk 0:09:56]} 12... Rac8 {[%clk
0:09:06.6]} 13. Rac1 {[%clk 0:09:53.4]} 13... Rfd8 {[%clk 0:09:06.9]} 14. Ne5
{[%clk 0:09:47.9]} 14... Na5 {[%clk 0:06:55.6]} 15. Nb5 {[%clk 0:08:42.5]} 15...
Bxg2 {[%clk 0:06:47.6]} 16. Kxg2 {[%clk 0:08:42.4]} 16... Nb7 {[%clk 0:05:51.3]}
17. Bg5 {[%clk 0:07:54.6]} 17... d6 {[%clk 0:05:43.4]} 18. Nd3 {[%clk
0:07:35.9]} 18... a6 {[%clk 0:05:31.8]} 19. Nd4 {[%clk 0:07:35.8]} 19... h6
{[%clk 0:05:06.5]} 20. Be3 {[%clk 0:07:28.1]} 20... Nc5 {[%clk 0:04:13]} 21. Nb4
{[%clk 0:07:20.4]} 21... Rd7 {[%clk 0:04:00.4]} 22. Nf3 {[%clk 0:07:15.8]} 22...
a5 {[%clk 0:03:33.4]} 23. Nd3 {[%clk 0:07:11.8]} 23... Rb7 {[%clk 0:02:46.3]}
24. Nd4 {[%clk 0:07:10.2]} 24... d5 {[%clk 0:02:41.7]} 25. Nb5 {[%clk
0:06:55.5]} 25... dxc4 {[%clk 0:02:15.4]} 26. Nxc5 {[%clk 0:06:56.1]} 26... bxc5
{[%clk 0:02:09.7]} 27. bxc4 {[%clk 0:06:55.3]} 27... Rd7 {[%clk 0:02:03.2]} 28.
f3 {[%clk 0:06:33.2]} 28... Kf8 {[%clk 0:01:52.3]} 29. Kf2 {[%clk 0:06:17.4]}
29... Ke8 {[%clk 0:01:52.9]} 30. Rb1 {[%clk 0:06:16.5]} 30... Rxd1 {[%clk
0:01:49.1]} 31. Rxd1 {[%clk 0:06:16.6]} 31... Nd7 {[%clk 0:01:51]} 32. Bd2
{[%clk 0:06:09.4]} 32... a4 {[%clk 0:01:11.5]} 33. Ba5 {[%clk 0:06:07.7]} 33...
Ne5 {[%clk 0:01:08.9]} 34. Rc1 {[%clk 0:06:05.4]} 34... Nc6 {[%clk 0:01:01.8]}
35. Bc3 {[%clk 0:06:03.1]} 35... f6 {[%clk 0:00:46.5]} 36. Rd1 {[%clk
0:05:57.5]} 36... Rd8 {[%clk 0:00:20.8]} 37. Rxd8+ {[%clk 0:05:56.4]} 37... Kxd8
{[%clk 0:00:22]} 38. Ke3 {[%clk 0:05:54.1]} 38... Kd7 {[%clk 0:00:17.6]} 39. a3
{[%clk 0:05:48.1]} 39... Bd8 {[%clk 0:00:15.6]} 40. Kd3 {[%clk 0:05:47]} 40...
Bb6 {[%clk 0:00:11.9]} 41. f4 {[%clk 0:05:46.9]} 41... Bc7 {[%clk 0:00:08.6]}
42. e3 {[%clk 0:05:47.4]} 42... Bd6 {[%clk 0:00:08.9]} 43. Bd2 {[%clk
0:05:44.9]} 43... Bc7 {[%clk 0:00:05.3]} 44. Nc3 {[%clk 0:05:45.3]} 44... Ba5
{[%clk 0:00:05.2]} 45. Nxa4 {[%clk 0:05:46.2]} 45... Bxd2 {[%clk 0:00:07.1]} 46.
Kxd2 {[%clk 0:05:47.2]} 46... Kd6 {[%clk 0:00:08.1]} 47. Nc3 {[%clk 0:05:43.9]}
47... Na5 {[%clk 0:00:08.9]} 48. Kd3 {[%clk 0:05:44.8]} 48... Kc6 {[%clk
0:00:10]} 49. g4 {[%clk 0:05:43.2]} 49... Nb7 {[%clk 0:00:10.3]} 50. h4 {[%clk
0:05:42.4]} 50... f5 {[%clk 0:00:07.3]} 51. gxf5 {[%clk 0:05:37.3]} 51... exf5
{[%clk 0:00:09.2]} 52. h5 {[%clk 0:05:36.2]} 52... Nd6 {[%clk 0:00:09]} 53. Nd5
{[%clk 0:05:36.7]} 53... Kd7 {[%clk 0:00:02.5]} 54. a4 {[%clk 0:05:34.5]} 54...
Ne4 {[%clk 0:00:02.1]} 55. a5 {[%clk 0:05:27.2]} 55... Ng3 {[%clk 0:00:03.2]}
56. Nb6+ {[%clk 0:05:08.6]} 56... Kc6 {[%clk 0:00:04.5]} 57. Na4 {[%clk
0:05:09.5]} 57... Nxh5 {[%clk 0:00:05.3]} 58. a6 {[%clk 0:05:10.7]} 58... Nf6
{[%clk 0:00:04.1]} 59. Nxc5 {[%clk 0:05:08.1]} 59... Kb6 {[%clk 0:00:05.2]} 60.
Ne6 {[%clk 0:04:57.7]} 60... g6 {[%clk 0:00:04.8]} 61. Kd4 {[%clk 0:04:45.4]}
61... Kxa6 {[%clk 0:00:06]} 62. Nf8 {[%clk 0:04:45.9]} 62... g5 {[%clk
0:00:05.7]} 63. fxg5 {[%clk 0:04:46.9]} 63... hxg5 {[%clk 0:00:07.6]} 64. Ke5
{[%clk 0:04:48.1]} 64... Ng4+ {[%clk 0:00:08.8]} 65. Kxf5 {[%clk 0:04:44.7]}
65... Nxe3+ {[%clk 0:00:09.9]} 66. Kxg5 {[%clk 0:04:45.9]} 66... Nxc4 {[%clk
0:00:11.8]} 1/2-1/2

[Event "GrandPrix_29.05"]
[Site "Chess.com"]
[Date "2020.05.29"]
[Round "2"]
[White "wannabe2700"]
[Black "EvgenyRomanov"]
[Result "1-0"]
[WhiteElo "2138"]
[BlackElo "2089"]
[TimeControl "600+2"]
[EndTime "9:54:17 PDT"]
[Termination "wannabe2700 won by resignation"]

1. e4 {[%clk 0:10:01.9]} 1... c5 {[%clk 0:09:05.1]} 2. d4 {[%clk 0:10:01.3]}
2... cxd4 {[%clk 0:09:04.8]} 3. Nf3 {[%clk 0:10:02.6]} 3... Nc6 {[%clk
0:09:02.9]} 4. Nxd4 {[%clk 0:10:03.9]} 4... Nf6 {[%clk 0:09:03]} 5. Nc3 {[%clk
0:10:04.3]} 5... d6 {[%clk 0:09:03.7]} 6. Bg5 {[%clk 0:10:04.5]} 6... e6 {[%clk
0:09:04.4]} 7. Qd2 {[%clk 0:10:04.3]} 7... a6 {[%clk 0:09:02.8]} 8. O-O-O {[%clk
0:10:03.7]} 8... Bd7 {[%clk 0:09:03.4]} 9. f4 {[%clk 0:10:02.3]} 9... Be7 {[%clk
0:09:01.1]} 10. Qe1 {[%clk 0:09:43.2]} 10... Nxd4 {[%clk 0:07:43.3]} 11. Rxd4
{[%clk 0:09:42.1]} 11... Qa5 {[%clk 0:07:30.4]} 12. e5 {[%clk 0:09:31.6]} 12...
dxe5 {[%clk 0:07:10]} 13. fxe5 {[%clk 0:09:06.6]} 13... Bc6 {[%clk 0:06:21.6]}
14. Bc4 {[%clk 0:09:00.1]} 14... Nd5 {[%clk 0:04:58.6]} 15. Bxe7 {[%clk
0:08:58.4]} 15... Nxe7 {[%clk 0:04:57.7]} 16. Qe2 {[%clk 0:07:02.6]} 16... O-O
{[%clk 0:04:47.7]} 17. Bd3 {[%clk 0:06:54.6]} 17... Ng6 {[%clk 0:03:54.1]} 18.
Re1 {[%clk 0:06:52]} 18... Rfd8 {[%clk 0:03:49.1]} 19. Rg4 {[%clk 0:06:28.7]}
19... b5 {[%clk 0:03:41.8]} 20. a3 {[%clk 0:06:21]} 20... Rac8 {[%clk
0:03:36.2]} 21. h4 {[%clk 0:06:14]} 21... Bb7 {[%clk 0:03:16.2]} 22. h5 {[%clk
0:06:11.7]} 22... Nf8 {[%clk 0:03:13.7]} 23. Qd2 {[%clk 0:06:01.8]} 23... Rxc3
{[%clk 0:01:25.8]} 24. Qxc3 {[%clk 0:04:16.7]} 24... Qxc3 {[%clk 0:01:25.1]} 25.
bxc3 {[%clk 0:04:18.6]} 25... Rc8 {[%clk 0:01:14.8]} 26. c4 {[%clk 0:04:16.5]}
26... Nd7 {[%clk 0:01:01.5]} 27. cxb5 {[%clk 0:04:13.4]} 27... Nc5 {[%clk
0:00:57.6]} 28. Bf1 {[%clk 0:04:08.6]} 28... axb5 {[%clk 0:00:53.6]} 29. Bxb5
{[%clk 0:04:07.3]} 29... Bd5 {[%clk 0:00:35.3]} 30. h6 {[%clk 0:03:57.5]} 30...
g6 {[%clk 0:00:34.5]} 31. a4 {[%clk 0:03:54]} 31... Kf8 {[%clk 0:00:34.3]} 32.
Kb2 {[%clk 0:03:50.4]} 32... Ke7 {[%clk 0:00:34.4]} 33. g3 {[%clk 0:03:48.4]}
33... Rb8 {[%clk 0:00:31.1]} 34. Ka3 {[%clk 0:03:46.8]} 34... Rc8 {[%clk
0:00:18.9]} 35. Kb4 {[%clk 0:03:37.9]} 35... Nb7 {[%clk 0:00:15.3]} 36. c4
{[%clk 0:03:37.6]} 36... Bg2 {[%clk 0:00:15.1]} 37. a5 {[%clk 0:03:30.8]} 37...
Nc5 {[%clk 0:00:15.5]} 38. Rd4 {[%clk 0:03:27.8]} 38... Rc7 {[%clk 0:00:15.9]}
39. a6 {[%clk 0:03:24.3]} 39... g5 {[%clk 0:00:14.8]} 40. Red1 {[%clk
0:03:20.4]} 40... Bf3 {[%clk 0:00:14.2]} 41. Rd8 {[%clk 0:03:15.4]} 41... Nxa6+
{[%clk 0:00:11.7]} 42. Bxa6 {[%clk 0:03:10.9]} 42... Bxd1 {[%clk 0:00:12.4]} 43.
Rxd1 {[%clk 0:03:11.6]} 43... f6 {[%clk 0:00:12.4]} 44. exf6+ {[%clk 0:03:10.8]}
44... Kxf6 {[%clk 0:00:13.6]} 45. c5 {[%clk 0:03:08]} 1-0

[Event "GrandPrix_29.05"]
[Site "Chess.com"]
[Date "2020.05.29"]
[Round "2"]
[White "Todorovic1991"]
[Black "Novoselski"]
[Result "1/2-1/2"]
[WhiteElo "1756"]
[BlackElo "2351"]
[TimeControl "600+2"]
[EndTime "9:54:18 PDT"]
[Termination "Game drawn by repetition"]

1. Nf3 {[%clk 0:10:01.9]} 1... g6 {[%clk 0:09:57.2]} 2. c4 {[%clk 0:10:01.3]}
2... Bg7 {[%clk 0:09:57.4]} 3. Nc3 {[%clk 0:10:02.1]} 3... c5 {[%clk 0:09:51.7]}
4. g3 {[%clk 0:10:00.9]} 4... Nc6 {[%clk 0:09:51.7]} 5. Bg2 {[%clk 0:10:01.8]}
5... e6 {[%clk 0:09:52.1]} 6. O-O {[%clk 0:10:01.4]} 6... Nge7 {[%clk
0:09:52.5]} 7. e3 {[%clk 0:10:02.2]} 7... O-O {[%clk 0:09:52.3]} 8. d4 {[%clk
0:10:02.4]} 8... cxd4 {[%clk 0:09:51.4]} 9. Nxd4 {[%clk 0:10:03.1]} 9... a6
{[%clk 0:09:35.3]} 10. Nde2 {[%clk 0:09:33.4]} 10... Qc7 {[%clk 0:09:26]} 11. e4
{[%clk 0:09:27.9]} 11... d6 {[%clk 0:09:14.6]} 12. Be3 {[%clk 0:09:21.3]} 12...
Rb8 {[%clk 0:08:50.8]} 13. Rc1 {[%clk 0:09:09]} 13... Bd7 {[%clk 0:08:31.3]} 14.
b3 {[%clk 0:08:58.8]} 14... Rfd8 {[%clk 0:08:22.6]} 15. Nd5 {[%clk 0:08:52]}
15... exd5 {[%clk 0:08:12.5]} 16. cxd5 {[%clk 0:08:52.4]} 16... Bg4 {[%clk
0:08:07.7]} 17. dxc6 {[%clk 0:08:51.8]} 17... bxc6 {[%clk 0:07:56.3]} 18. h3
{[%clk 0:08:51.8]} 18... Bd7 {[%clk 0:07:39.5]} 19. Qd2 {[%clk 0:08:50.7]} 19...
Be8 {[%clk 0:07:32.5]} 20. Rfd1 {[%clk 0:08:45.7]} 20... Be5 {[%clk 0:06:52.7]}
21. f4 {[%clk 0:08:24.2]} 21... Bg7 {[%clk 0:06:51.9]} 22. Kh2 {[%clk
0:08:24.8]} 22... Qb7 {[%clk 0:06:48.9]} 23. Bd4 {[%clk 0:08:21]} 23... d5
{[%clk 0:06:39.3]} 24. Bxg7 {[%clk 0:08:14.6]} 24... Kxg7 {[%clk 0:06:41.2]} 25.
e5 {[%clk 0:07:40.8]} 25... Qb4 {[%clk 0:06:31.9]} 26. Nd4 {[%clk 0:07:03.8]}
26... Qxd2 {[%clk 0:06:22.7]} 27. Rxd2 {[%clk 0:07:03.9]} 27... h5 {[%clk
0:06:19.3]} 28. Rc5 {[%clk 0:06:56.6]} 28... Rb6 {[%clk 0:06:06.7]} 29. g4
{[%clk 0:06:31.2]} 29... hxg4 {[%clk 0:06:01.6]} 30. hxg4 {[%clk 0:06:31.6]}
30... Bd7 {[%clk 0:05:55.6]} 31. Kg3 {[%clk 0:06:31.8]} 31... Ra8 {[%clk
0:05:48.4]} 32. Bf1 {[%clk 0:06:19.8]} 32... a5 {[%clk 0:05:46.4]} 33. a3 {[%clk
0:06:19.7]} 33... Rbb8 {[%clk 0:05:37.8]} 34. Bd3 {[%clk 0:06:12.7]} 34... f6
{[%clk 0:05:10.2]} 35. e6 {[%clk 0:06:01.9]} 35... Be8 {[%clk 0:05:09.7]} 36. f5
{[%clk 0:06:00.2]} 36... Rb6 {[%clk 0:04:44]} 37. Kf4 {[%clk 0:05:45.9]} 37...
g5+ {[%clk 0:04:18.9]} 38. Ke3 {[%clk 0:05:45.4]} 38... Ng8 {[%clk 0:04:16.5]}
39. Kf3 {[%clk 0:05:44.8]} 39... Ra7 {[%clk 0:04:03]} 40. Rdc2 {[%clk
0:05:33.4]} 40... Ne7 {[%clk 0:03:54.9]} 41. Rh2 {[%clk 0:05:03.2]} 41... Ng8
{[%clk 0:03:49.3]} 42. Ke3 {[%clk 0:04:49.7]} 42... Ne7 {[%clk 0:03:35.1]} 43.
Rc1 {[%clk 0:04:27.2]} 43... Ng8 {[%clk 0:03:30]} 44. Rc5 {[%clk 0:04:17]} 44...
Ne7 {[%clk 0:03:27.2]} 45. Be2 {[%clk 0:04:10.9]} 45... Ng8 {[%clk 0:03:22.9]}
46. Rc1 {[%clk 0:04:02.8]} 46... Re7 {[%clk 0:03:15.8]} 47. Rc3 {[%clk
0:03:54.2]} 47... Kf8 {[%clk 0:03:11.5]} 48. Kd2 {[%clk 0:03:54.1]} 48... Rg7
{[%clk 0:03:02.2]} 49. Rh8 {[%clk 0:03:48.3]} 49... Rc7 {[%clk 0:02:48.5]} 50.
Rc5 {[%clk 0:03:42.5]} 50... Kg7 {[%clk 0:02:44.9]} 51. Rh3 {[%clk 0:03:39.8]}
51... Ra7 {[%clk 0:02:46.4]} 52. Rhc3 {[%clk 0:03:20.6]} 52... Ne7 {[%clk
0:02:44.8]} 53. Kc2 {[%clk 0:03:20.7]} 53... Kf8 {[%clk 0:02:41.9]} 54. Nf3
{[%clk 0:03:08]} 54... Nc8 {[%clk 0:02:35.9]} 55. Nd4 {[%clk 0:03:07.3]} 55...
Ne7 {[%clk 0:02:33.8]} 56. Rh3 {[%clk 0:02:56.8]} 56... Kg7 {[%clk 0:02:26.9]}
57. Kb2 {[%clk 0:02:55.2]} 57... Ng8 {[%clk 0:02:14.7]} 58. Rc1 {[%clk
0:02:54.3]} 58... Kf8 {[%clk 0:02:11.5]} 59. Rc5 {[%clk 0:02:39.9]} 59... Kg7
{[%clk 0:02:09.1]} 60. Kc2 {[%clk 0:02:39.8]} 60... Kf8 {[%clk 0:02:06.3]} 61.
Bf3 {[%clk 0:02:37.4]} 61... Kg7 {[%clk 0:02:04.8]} 62. Be2 {[%clk 0:02:37.4]}
62... Kf8 {[%clk 0:02:04.1]} 63. Bd3 {[%clk 0:02:37.8]} 63... Kg7 {[%clk
0:02:03.3]} 64. Be2 {[%clk 0:02:33.5]} 1/2-1/2

[Event "GrandPrix_29.05"]
[Site "Chess.com"]
[Date "2020.05.29"]
[Round "2"]
[White "fujiwara_hoga"]
[Black "RovenVogel"]
[Result "0-1"]
[WhiteElo "2148"]
[BlackElo "2231"]
[TimeControl "600+2"]
[EndTime "9:54:22 PDT"]
[Termination "RovenVogel won by resignation"]

1. d4 {[%clk 0:10:01.9]} 1... Nf6 {[%clk 0:09:53.9]} 2. c4 {[%clk 0:10:00.7]}
2... e6 {[%clk 0:09:54.2]} 3. Nc3 {[%clk 0:10:00.3]} 3... Bb4 {[%clk 0:09:53.5]}
4. e3 {[%clk 0:10:00.1]} 4... O-O {[%clk 0:09:52.4]} 5. Bd3 {[%clk 0:10:00.4]}
5... d5 {[%clk 0:09:48.7]} 6. a3 {[%clk 0:09:59.6]} 6... Bxc3+ {[%clk
0:09:24.7]} 7. bxc3 {[%clk 0:10:01.5]} 7... dxc4 {[%clk 0:09:22.8]} 8. Bxc4
{[%clk 0:10:00.9]} 8... c5 {[%clk 0:09:24.7]} 9. Nf3 {[%clk 0:10:01.1]} 9... Qc7
{[%clk 0:09:20.8]} 10. Ba2 {[%clk 0:09:51.8]} 10... b6 {[%clk 0:09:21]} 11. O-O
{[%clk 0:09:51.3]} 11... Bb7 {[%clk 0:08:42.5]} 12. Ne5 {[%clk 0:09:47.2]} 12...
Nbd7 {[%clk 0:08:32]} 13. Nxd7 {[%clk 0:09:46.3]} 13... Qxd7 {[%clk 0:08:22.1]}
14. f3 {[%clk 0:09:45.5]} 14... Rfd8 {[%clk 0:08:07.1]} 15. Bb2 {[%clk
0:09:41.6]} 15... cxd4 {[%clk 0:08:05.9]} 16. cxd4 {[%clk 0:09:40.5]} 16... Bd5
{[%clk 0:08:02.5]} 17. Bb1 {[%clk 0:09:37.3]} 17... Bc4 {[%clk 0:06:37.3]} 18.
Rf2 {[%clk 0:09:20.7]} 18... Qb5 {[%clk 0:06:25.5]} 19. e4 {[%clk 0:08:43.5]}
19... Qg5 {[%clk 0:06:25.2]} 20. Qd2 {[%clk 0:08:29.8]} 20... Qxd2 {[%clk
0:06:07.6]} 21. Rxd2 {[%clk 0:08:28.7]} 21... Rac8 {[%clk 0:06:09.5]} 22. Bc2
{[%clk 0:08:23]} 22... Ne8 {[%clk 0:05:47.3]} 23. Rad1 {[%clk 0:08:01.7]} 23...
Ba6 {[%clk 0:05:37.6]} 24. Bb3 {[%clk 0:07:19.5]} 24... Nd6 {[%clk 0:05:18.1]}
25. d5 {[%clk 0:06:53]} 25... Bc4 {[%clk 0:05:05.2]} 26. Ba4 {[%clk 0:05:24.5]}
26... exd5 {[%clk 0:04:55.6]} 27. exd5 {[%clk 0:05:19.8]} 27... b5 {[%clk
0:04:39.6]} 28. Bc2 {[%clk 0:05:17.9]} 28... f6 {[%clk 0:04:17.4]} 29. Kf2
{[%clk 0:04:49.6]} 29... Bxd5 {[%clk 0:03:44.6]} 30. Bxh7+ {[%clk 0:02:35]}
30... Kxh7 {[%clk 0:03:46.5]} 31. Rxd5 {[%clk 0:02:35.6]} 31... Rc2+ {[%clk
0:03:45.3]} 32. Kg3 {[%clk 0:02:16.2]} 32... Nf5+ {[%clk 0:03:20.9]} 33. Kh3
{[%clk 0:00:56.8]} 33... Rxd5 {[%clk 0:03:02.8]} 34. Rxd5 {[%clk 0:00:56.3]}
34... Ne3 {[%clk 0:03:04.7]} 35. Rxb5 {[%clk 0:00:54.7]} 35... Nxg2 {[%clk
0:02:59.8]} 36. Rb7 {[%clk 0:00:39.1]} 36... Kg6 {[%clk 0:02:47.2]} 37. Kg3
{[%clk 0:00:31.4]} 37... Ne3 {[%clk 0:02:44.7]} 38. Rb3 {[%clk 0:00:20.2]} 38...
Nf1+ {[%clk 0:02:37.5]} 39. Kf4 {[%clk 0:00:19.2]} 39... Rc4+ {[%clk 0:02:36.2]}
0-1

[Event "GrandPrix_29.05"]
[Site "Chess.com"]
[Date "2020.05.29"]
[Round "2"]
[White "Bacyanide"]
[Black "Mesropov_Konstantin"]
[Result "1-0"]
[WhiteElo "2345"]
[BlackElo "1888"]
[TimeControl "600+2"]
[EndTime "9:54:26 PDT"]
[Termination "Bacyanide won by resignation"]

1. d4 {[%clk 0:10:01.9]} 1... e6 {[%clk 0:09:54.2]} 2. Nf3 {[%clk 0:10:01.7]}
2... d5 {[%clk 0:09:54.8]} 3. Bf4 {[%clk 0:10:01.7]} 3... c6 {[%clk 0:09:55.2]}
4. e3 {[%clk 0:09:59.6]} 4... Bd6 {[%clk 0:09:53.7]} 5. Nbd2 {[%clk 0:09:47.6]}
5... f5 {[%clk 0:09:52.1]} 6. c4 {[%clk 0:09:42.1]} 6... Nf6 {[%clk 0:09:51.8]}
7. Bd3 {[%clk 0:09:42.8]} 7... O-O {[%clk 0:09:51.2]} 8. Qc2 {[%clk 0:09:40.8]}
8... Ne4 {[%clk 0:09:50.6]} 9. O-O {[%clk 0:09:30.9]} 9... Qe7 {[%clk
0:09:48.8]} 10. c5 {[%clk 0:09:26.4]} 10... Bc7 {[%clk 0:09:48.9]} 11. b4 {[%clk
0:09:15.5]} 11... g5 {[%clk 0:09:33.9]} 12. Bxc7 {[%clk 0:09:12.8]} 12... Qxc7
{[%clk 0:09:34.7]} 13. Bxe4 {[%clk 0:08:42.8]} 13... fxe4 {[%clk 0:09:13.8]} 14.
Nxg5 {[%clk 0:08:35]} 14... h6 {[%clk 0:08:45.3]} 15. Ngxe4 {[%clk 0:07:56.5]}
15... dxe4 {[%clk 0:08:43.8]} 16. Qxe4 {[%clk 0:07:43.7]} 16... Qh7 {[%clk
0:08:23.3]} 17. Qh4 {[%clk 0:07:30.5]} 17... Nd7 {[%clk 0:07:01.7]} 18. Ne4
{[%clk 0:07:28]} 18... Qg6 {[%clk 0:07:02.6]} 19. Nd6 {[%clk 0:07:08.3]} 19...
Qg5 {[%clk 0:05:49.8]} 20. Qh3 {[%clk 0:07:06.4]} 20... Nf6 {[%clk 0:05:48.6]}
21. f4 {[%clk 0:07:03.3]} 21... Qh5 {[%clk 0:05:32.4]} 22. Qxh5 {[%clk
0:05:40.5]} 22... Nxh5 {[%clk 0:05:32]} 23. g4 {[%clk 0:05:25.1]} 23... Nf6
{[%clk 0:05:20.4]} 24. h3 {[%clk 0:05:24.5]} 24... Nd5 {[%clk 0:05:16.2]} 25.
Rf3 {[%clk 0:05:19.8]} 25... Nxb4 {[%clk 0:04:40.5]} 26. h4 {[%clk 0:05:02.5]}
26... b6 {[%clk 0:04:28]} 27. g5 {[%clk 0:04:59.6]} 27... bxc5 {[%clk
0:04:14.5]} 28. dxc5 {[%clk 0:04:58.8]} 28... hxg5 {[%clk 0:03:40.6]} 29. hxg5
{[%clk 0:04:58.4]} 29... Ba6 {[%clk 0:03:22.9]} 30. Kg2 {[%clk 0:04:42.3]} 30...
Kg7 {[%clk 0:02:47.1]} 31. e4 {[%clk 0:04:12.1]} 31... Nd3 {[%clk 0:02:36.1]}
32. f5 {[%clk 0:04:11]} 32... e5 {[%clk 0:02:24.5]} 33. Kg3 {[%clk 0:03:26.2]}
33... Rh8 {[%clk 0:01:57.3]} 34. Rd1 {[%clk 0:03:02.8]} 34... Nf4 {[%clk
0:01:43.4]} 35. Rxf4 {[%clk 0:02:58.4]} 35... exf4+ {[%clk 0:01:43.4]} 36. Kxf4
{[%clk 0:03:00.3]} 36... Rh4+ {[%clk 0:00:57.7]} 37. Ke5 {[%clk 0:02:59.8]}
37... Be2 {[%clk 0:00:54.8]} 38. Rg1 {[%clk 0:02:53.9]} 38... Bf3 {[%clk
0:00:52.4]} 39. g6 {[%clk 0:02:47.2]} 39... Rxe4+ {[%clk 0:00:41.2]} 40. Nxe4
{[%clk 0:02:47.3]} 40... Re8+ {[%clk 0:00:42.8]} 41. Kf4 {[%clk 0:02:46.3]}
41... Bxe4 {[%clk 0:00:44.1]} 42. Re1 {[%clk 0:02:42.8]} 42... Bxf5 {[%clk
0:00:20.7]} 43. Rxe8 {[%clk 0:02:41]} 1-0

[Event "GrandPrix_29.05"]
[Site "Chess.com"]
[Date "2020.05.29"]
[Round "2"]
[White "Dolphin_2010"]
[Black "kosmeg"]
[Result "1-0"]
[WhiteElo "2072"]
[BlackElo "2110"]
[TimeControl "600+2"]
[EndTime "9:54:27 PDT"]
[Termination "Dolphin_2010 won by resignation"]

1. e4 {[%clk 0:10:01.9]} 1... e5 {[%clk 0:09:53.1]} 2. Nf3 {[%clk 0:10:01.4]}
2... Nc6 {[%clk 0:09:54.2]} 3. d4 {[%clk 0:10:01]} 3... exd4 {[%clk 0:09:54.1]}
4. Bc4 {[%clk 0:10:01.3]} 4... Nf6 {[%clk 0:09:52]} 5. e5 {[%clk 0:10:01.5]}
5... d5 {[%clk 0:09:52.1]} 6. Bb5 {[%clk 0:10:01.7]} 6... Ne4 {[%clk 0:09:50.3]}
7. Nxd4 {[%clk 0:10:02.4]} 7... Bc5 {[%clk 0:09:51.4]} 8. Be3 {[%clk 0:10:01.8]}
8... Bd7 {[%clk 0:09:31.5]} 9. Bxc6 {[%clk 0:10:00.2]} 9... bxc6 {[%clk
0:09:31.8]} 10. O-O {[%clk 0:10:00.1]} 10... O-O {[%clk 0:09:30.3]} 11. f3
{[%clk 0:09:58.2]} 11... Ng5 {[%clk 0:09:18.2]} 12. f4 {[%clk 0:09:56.5]} 12...
Ne4 {[%clk 0:09:17.6]} 13. Nd2 {[%clk 0:09:56.7]} 13... Nxd2 {[%clk 0:08:57.4]}
14. Qxd2 {[%clk 0:09:58.6]} 14... Bb6 {[%clk 0:08:58.9]} 15. Nb3 {[%clk
0:09:56.9]} 15... f6 {[%clk 0:08:43]} 16. Nc5 {[%clk 0:09:43.7]} 16... Bf5
{[%clk 0:08:33.7]} 17. Qc3 {[%clk 0:09:37.3]} 17... Qe7 {[%clk 0:08:15.4]} 18.
Rae1 {[%clk 0:09:19.8]} 18... fxe5 {[%clk 0:08:07.9]} 19. fxe5 {[%clk
0:09:17.2]} 19... Rae8 {[%clk 0:08:07.8]} 20. Bd4 {[%clk 0:08:34.3]} 20... Bc8
{[%clk 0:06:15.9]} 21. Rxf8+ {[%clk 0:07:57.5]} 21... Rxf8 {[%clk 0:06:09.8]}
22. b4 {[%clk 0:07:50.9]} 22... Qg5 {[%clk 0:05:36.6]} 23. a4 {[%clk 0:07:09.8]}
23... a6 {[%clk 0:04:42]} 24. a5 {[%clk 0:07:00.1]} 24... Ba7 {[%clk 0:04:41.5]}
25. e6 {[%clk 0:06:55.4]} 25... Re8 {[%clk 0:04:32.9]} 26. Qf3 {[%clk
0:06:28.6]} 26... Qg6 {[%clk 0:02:05.3]} 27. Rf1 {[%clk 0:06:10.1]} 27... h6
{[%clk 0:00:57]} 28. Qf7+ {[%clk 0:05:57.9]} 28... Kh7 {[%clk 0:00:57.5]} 29.
Qxg6+ {[%clk 0:03:51.6]} 29... Kxg6 {[%clk 0:00:56.8]} 30. Rf7 {[%clk
0:03:51.1]} 30... Bxc5 {[%clk 0:00:58]} 31. Rxg7+ {[%clk 0:03:49.6]} 31... Kf5
{[%clk 0:00:58.9]} 32. bxc5 {[%clk 0:03:28.3]} 32... Bxe6 {[%clk 0:00:50.6]} 33.
Rxc7 {[%clk 0:03:25.2]} 33... Ke4 {[%clk 0:00:50.4]} 34. c3 {[%clk 0:03:24.2]}
34... Rf8 {[%clk 0:00:27.2]} 35. Re7 {[%clk 0:03:21.2]} 35... Kf5 {[%clk
0:00:10.4]} 36. g4+ {[%clk 0:03:21.6]} 36... Kxg4 {[%clk 0:00:06.9]} 37. Rxe6
{[%clk 0:03:23.5]} 37... Rb8 {[%clk 0:00:07.8]} 38. Rxc6 {[%clk 0:03:19.8]}
38... Kf3 {[%clk 0:00:05.9]} 39. Rf6+ {[%clk 0:03:19.2]} 39... Kg4 {[%clk
0:00:06.5]} 40. Rxa6 {[%clk 0:03:17.6]} 40... h5 {[%clk 0:00:04.5]} 41. Rf6
{[%clk 0:03:17.8]} 41... h4 {[%clk 0:00:05.2]} 42. Kf2 {[%clk 0:03:12]} 42...
Kh3 {[%clk 0:00:04.5]} 43. Ke3 {[%clk 0:03:08.9]} 43... Kxh2 {[%clk 0:00:03.5]}
44. Be5+ {[%clk 0:03:09.3]} 44... Kh1 {[%clk 0:00:05]} 45. Bxb8 {[%clk
0:03:10.9]} 45... h3 {[%clk 0:00:06.5]} 46. Kf2 {[%clk 0:03:09.6]} 46... h2
{[%clk 0:00:05.1]} 47. Bxh2 {[%clk 0:03:10.3]} 1-0